bitfinex/quotes_SOLUSD_20240818
["timestamp","ask_amount","ask_price","bid_price","bid_amount"]
[1723985555036,0.25098,145.78,145.73,16.4213]
[1723985555211,0.25098,145.77,145.73,16.4213]
[1723985555411,27.77632667,145.8,145.73,16.4213]
[1723985556236,1.71534567,145.79,145.73,16.4213]
[1723985556432,20.61,145.78,145.73,16.4213]
[1723985556633,0.12549,145.73,145.69,16.8552172]
[1723985556833,65.86098,145.73,145.69,16.8552172]
[1723985557021,0.12549,145.72,145.69,16.8552172]
[1723985557221,0.25098,145.72,145.69,16.8552172]
[1723985558429,46.1935938,145.73,145.69,16.8552172]
[1723985559525,45.0,145.73,145.69,16.8552172]
[1723985561554,1.1934527,145.76,145.69,16.8552172]
[1723985561726,20.61,145.78,145.69,16.8552172]
[1723985561928,1.19330035,145.77,145.69,16.8552172]
[1723985562335,21.80330035,145.77,145.69,16.8552172]
[1723985562522,1.71553939,145.76,145.69,16.8552172]
[1723985562721,0.12549,145.75,145.69,16.8552172]
[1723985562922,0.12549,145.74,145.69,16.8552172]
[1723985563121,65.98647,145.74,145.69,16.8552172]
[1723985563349,45.0,145.73,145.69,16.8552172]
[1723985566555,20.61,145.76,145.69,16.8552172]
[1723985566940,22.32575105,145.76,145.69,16.8552172]
[1723985567142,20.61,145.76,145.69,16.8552172]
[1723985567754,20.73549,145.74,145.69,16.8552172]
[1723985567949,45.0,145.73,145.69,16.8552172]
[1723985570247,1.96673157,145.72,145.69,16.8552172]
[1723985571046,0.25098,145.72,145.69,16.8552172]
[1723985572364,0.12549,145.72,145.69,16.8552172]
[1723985572538,45.0,145.73,145.69,16.8552172]
[1723985572732,0.12549,145.72,145.69,16.8552172]
[1723985573561,65.61,145.73,145.69,16.8552172]
[1723985576561,0.50196,145.72,145.69,16.8552172]
[1723985578151,0.25098,145.72,145.69,16.8552172]
[1723985578364,45.0,145.73,145.69,16.8552172]
[1723985578365,65.61,145.73,145.69,16.8552172]
[1723985578658,45.0,145.73,145.69,16.8552172]
[1723985580137,20.61,145.76,145.69,16.8552172]
[1723985580457,28.39799979,145.75,145.69,16.8552172]
[1723985580761,20.61,145.75,145.69,16.8552172]
[1723985581354,7.78816472,145.74,145.69,16.8552172]
[1723985581654,20.61,145.75,145.69,16.8552172]
[1723985581855,45.0,145.73,145.69,16.8552172]
[1723985582357,45.0,145.74,145.69,16.8552172]
[1723985582854,7.78821618,145.73,145.69,16.8552172]
[1723985583032,45.0,145.72,145.69,16.8552172]
[1723985583437,45.0,145.73,145.69,16.8552172]
[1723985583654,45.0,145.74,145.69,16.8552172]
[1723985583983,7.78821571,145.73,145.69,16.8552172]
[1723985584159,45.0,145.72,145.69,16.8552172]
[1723985585854,1.715751,145.71,145.69,16.8552172]
[1723985586348,45.0,145.72,145.69,16.8552172]
[1723985586549,65.73549,145.73,145.69,16.8552172]
[1723985586770,7.78880602,145.72,145.69,16.8552172]
[1723985586973,20.64,145.75,145.69,16.8552172]
[1723985587152,28.4283922,145.74,145.69,16.8552172]
[1723985587346,7.7883922,145.73,145.69,16.8552172]
[1723985587552,7.7883922,145.72,145.69,16.8552172]
[1723985587749,20.64,145.74,145.69,16.8552172]
[1723985587954,7.7884269,145.73,145.69,16.8552172]
[1723985588154,20.89098,145.76,145.69,16.8552172]
[1723985588354,45.0,145.72,145.69,16.8552172]
[1723985591351,45.0,145.72,145.69,13.8552172]
[1723985591880,45.0,145.72,145.69,13.7641866]
[1723985592075,30.1445502,145.71,145.57,6.328]
[1723985592258,52.91407404,145.7,145.57,6.328]
[1723985592457,45.12549,145.7,145.57,6.328]
[1723985592653,45.12549,145.7,145.57,7.16643528]
[1723985592857,45.12549,145.7,145.58,6.328]
[1723985593380,1.71626177,145.69,145.58,6.328]
[1723985593547,45.12549,145.7,145.59,6.25579]
[1723985593877,1.716264,145.69,145.6,20.0]
[1723985594077,45.12549,145.7,145.6,20.0]
[1723985594663,0.12549,145.7,145.6,20.0]
[1723985594869,7.78938693,145.69,145.61,16.4408]
[1723985595065,75.14584109,145.68,145.61,16.4408]
[1723985595373,45.0,145.67,145.61,16.4408]
[1723985596781,65.64,145.67,145.61,16.4408]
[1723985599683,45.0,145.67,145.61,16.4408]
[1723985600063,0.12549,145.69,145.61,16.4408]
[1723985600263,28.4306169,145.68,145.61,16.4408]
[1723985600467,20.64,145.68,145.61,16.4408]
[1723985601368,45.0,145.67,145.61,16.4408]
[1723985604168,0.25098,145.66,145.61,16.4408]
[1723985604375,0.12549,145.64,145.61,16.4408]
[1723985604686,67.7334407,145.64,145.61,16.4408]
[1723985604885,22.7334407,145.64,145.61,16.4408]
[1723985605097,45.0,145.63,145.61,16.4408]
[1723985605303,1.71699868,145.62,145.61,16.4408]
[1723985606101,45.0,145.63,145.61,16.4408]
[1723985606316,1.71699993,145.62,145.61,16.4408]
[1723985606595,66.01647,145.64,145.61,16.4408]
[1723985606773,7.79373407,145.63,145.61,16.4408]
[1723985606976,45.0,145.62,145.61,16.4408]
[1723985607293,0.12549,145.61,145.57,16.4408]
[1723985607490,22.73381835,145.61,145.57,16.4408]
[1723985607683,45.0,145.6,145.57,16.4408]
[1723985609371,65.64,145.6,145.57,16.4408]
[1723985609572,22.73397991,145.59,145.57,16.4408]
[1723985609875,45.0,145.58,145.57,16.4408]
[1723985610397,45.0,145.58,145.55,6.9855172]
[1723985610398,45.12549,145.58,145.55,6.9855172]
[1723985610579,1.71764909,145.57,145.55,6.9855172]
[1723985610895,45.12549,145.58,145.55,6.9855172]
[1723985611666,45.12549,145.58,145.55,0.8552172]
[1723985612371,1.71766804,145.57,145.55,0.8552172]
[1723985613088,65.76549,145.58,145.55,0.8552172]
[1723985613276,0.12549,145.57,145.55,0.8552172]
[1723985613474,1.84328673,145.57,145.55,0.8552172]
[1723985613876,0.12549,145.57,145.55,0.8552172]
[1723985614078,0.37647,145.57,145.55,0.8552172]
[1723985614402,0.25098,145.57,145.55,0.8552172]
[1723985614573,0.12549,145.57,145.55,0.8552172]
[1723985615272,45.0,145.58,145.55,0.8552172]
[1723985615494,1.7176128,145.57,145.55,0.8552172]
[1723985615695,65.64,145.58,145.55,0.8552172]
[1723985615873,1.71770586,145.57,145.55,0.8552172]
[1723985616273,1.71770586,145.57,145.55,0.3552172]
[1723985616484,1.57128071,145.59,145.55,0.3552172]
[1723985616485,1.32030071,145.59,145.55,0.3552172]
[1723985616694,1.19481071,145.59,145.55,0.3552172]
[1723985618182,0.12549,145.58,145.55,0.3552172]
[1723985618377,0.25098,145.58,145.55,0.3552172]
[1723985618578,0.37647,145.58,145.55,0.3552172]
[1723985619177,0.12549,145.57,145.55,0.3552172]
[1723985620790,1.84330578,145.57,145.55,0.3552172]
[1723985620993,22.73423997,145.58,145.55,0.3552172]
[1723985621186,45.0,145.57,145.55,0.3552172]
[1723985622299,45.12549,145.58,145.55,0.3552172]
[1723985622896,46.84324959,145.58,145.55,0.3552172]
[1723985623219,45.12549,145.58,145.55,0.3552172]
[1723985623514,1.71776107,145.57,145.55,0.3552172]
[1723985624203,0.37647,145.56,145.55,0.3552172]
[1723985624395,0.50196,145.56,145.55,0.3552172]
[1723985625389,21.14196,145.56,145.55,0.3552172]
[1723985625581,66.14196,145.56,145.55,0.3552172]
[1723985625912,45.0,145.56,145.55,0.3552172]
[1723985626089,20.64,145.58,145.55,0.3552172]
[1723985626090,1.71784543,145.58,145.55,0.3552172]
[1723985626398,14.84017066,145.62,145.55,0.3552172]
[1723985626780,6.8677,145.61,145.55,0.3552172]
[1723985627008,20.64,145.6,145.55,0.3552172]
[1723985627619,0.12549,145.59,145.55,0.3552172]
[1723985627990,0.25098,145.59,145.55,0.3552172]
[1723985628205,20.89098,145.58,145.55,0.3552172]
[1723985628407,45.0,145.57,145.55,0.3552172]
[1723985628607,0.25098,145.56,145.55,0.3552172]
[1723985628788,65.64,145.57,145.55,0.3552172]
[1723985630410,0.12549,145.56,145.55,0.3552172]
[1723985630994,1.96891093,145.56,145.55,0.3552172]
[1723985631198,22.85989093,145.56,145.55,0.3552172]
[1723985631511,67.86005602,145.56,145.55,0.3552172]
[1723985631710,66.14196,145.56,145.55,0.3552172]
[1723985633204,73.01196,145.56,145.55,0.3552172]
[1723985633406,66.14196,145.56,145.55,0.3552172]
[1723985634911,67.860146,145.56,145.55,0.3552172]
[1723985635617,66.14196,145.56,145.55,0.3552172]
[1723985636209,24.33458039,145.61,145.55,0.3552172]
[1723985636210,20.64,145.59,145.55,0.3552172]
[1723985636392,20.64,145.59,145.55,15.8898172]
[1723985636598,22.35765278,145.59,145.55,15.8898172]
[1723985636793,20.64,145.59,145.55,15.8898172]
[1723985637517,27.80785147,145.59,145.55,15.8898172]
[1723985637823,1.71778643,145.58,145.55,0.3552172]
[1723985638117,27.80785147,145.59,145.55,0.3552172]
[1723985638297,20.76549,145.57,145.55,0.3552172]
[1723985638496,65.89098,145.56,145.55,0.3552172]
[1723985638696,20.64,145.6,145.57,15.5346]
[1723985639613,20.64,145.64,145.57,15.5346]
[1723985640596,22.35740127,145.63,145.57,15.5346]
[1723985640796,20.64,145.63,145.57,15.5346]
[1723985640998,0.12549,145.62,145.57,15.5346]
[1723985641701,66.14196,145.62,145.57,15.5346]
[1723985641896,27.80162701,145.64,145.57,15.5346]
[1723985642103,13.11917671,145.69,145.57,15.5346]
[1723985642327,7.16066296,145.68,145.57,15.5346]
[1723985642624,6.25527671,145.73,145.59,15.5346]
[1723985642807,6.25527671,145.73,145.61,15.5346]
[1723985643003,27.79822768,145.72,145.61,15.5346]
[1723985643709,1.71639604,145.71,145.61,15.5346]
[1723985643915,27.79822768,145.72,145.61,15.5346]
[1723985643916,34.66072768,145.72,145.61,15.5346]
[1723985644801,1.71660002,145.71,145.61,15.5346]
[1723985645405,34.66072768,145.72,145.61,15.5346]
[1723985645613,0.12549,145.71,145.61,15.5346]
[1723985645821,66.01647,145.71,145.61,15.5346]
[1723985646326,0.12549,145.7,145.61,15.5346]
[1723985646534,0.25098,145.7,145.61,15.5346]
[1723985647113,0.25098,145.71,145.61,15.5346]
[1723985647422,1.96744718,145.71,145.61,15.5346]
[1723985647722,20.89098,145.7,145.61,15.5346]
[1723985647927,0.12549,145.68,145.61,15.5346]
[1723985648124,0.25098,145.68,145.61,15.5346]
[1723985648308,0.12549,145.67,145.61,15.5346]
[1723985650223,1.84217515,145.67,145.61,15.5346]
[1723985650404,1.84218223,145.67,145.61,15.5346]
[1723985650611,0.12549,145.65,145.61,15.5346]
[1723985650817,1.96794114,145.65,145.61,15.5346]
[1723985651016,46.96794114,145.65,145.61,15.5346]
[1723985651420,1.96794114,145.65,145.61,15.5346]
[1723985651813,0.12549,145.63,145.61,15.5346]
[1723985652030,1.9680646,145.63,145.61,15.5346]
[1723985652223,0.25098,145.63,145.61,15.5346]
[1723985653632,20.89098,145.63,145.61,15.5346]
[1723985654006,45.0,145.62,145.61,15.5346]
[1723985656239,20.64,145.67,145.61,15.5346]
[1723985656436,1.71684618,145.66,145.61,15.5346]
[1723985656930,1.71691193,145.66,145.61,15.5346]
[1723985658230,65.64,145.66,145.61,15.5346]
[1723985658401,0.12549,145.65,145.61,15.5346]
[1723985658606,20.64,145.64,145.61,15.5346]
[1723985658806,45.0,145.63,145.61,15.5346]
[1723985660336,1.71699541,145.62,145.61,15.5346]
[1723985660713,45.0,145.63,145.61,15.5346]
[1723985663640,1.71698555,145.62,145.61,15.5346]
[1723985664143,45.0,145.63,145.61,15.5346]
[1723985664441,1.71702802,145.62,145.61,15.5346]
[1723985664650,45.0,145.63,145.61,15.5346]
[1723985665624,65.64,145.63,145.57,16.313]
[1723985667343,1.71716622,145.62,145.57,16.313]
[1723985669078,0.25098,145.61,145.57,16.313]
[1723985669557,0.12549,145.61,145.57,16.313]
[1723985669732,0.25098,145.62,145.57,16.313]
[1723985670334,1.96836144,145.62,145.57,16.313]
[1723985671754,1.71720126,145.62,145.57,16.313]
[1723985671959,1.7172126,145.61,145.57,16.313]
[1723985672466,65.64,145.63,145.57,16.313]
[1723985672644,67.35722864,145.63,145.57,16.313]
[1723985673539,67.35721129,145.63,145.57,16.313]
[1723985673746,0.37647,145.62,145.57,16.313]
[1723985673964,0.12549,145.61,145.57,16.313]
[1723985674842,65.64,145.63,145.57,16.313]
[1723985675746,67.35720692,145.63,145.57,16.313]
[1723985676158,65.64,145.63,145.57,16.313]
[1723985680657,1.71707049,145.62,145.57,16.313]
[1723985680858,65.64,145.63,145.57,16.313]
[1723985681271,1.71708484,145.62,145.57,16.313]
[1723985681609,65.64,145.63,145.57,16.313]
[1723985681610,1.71720737,145.61,145.57,16.313]
[1723985681768,0.12549,145.62,145.57,16.313]
[1723985681959,0.50196,145.62,145.57,16.313]
[1723985685083,0.25098,145.62,145.57,16.313]
[1723985685382,65.64,145.63,145.57,16.313]
[1723985685573,7.79409478,145.62,145.57,16.313]
[1723985685779,45.0,145.61,145.57,16.313]
[1723985690888,20.64,145.65,145.57,16.313]
[1723985691093,52.79330321,145.64,145.57,16.313]
[1723985691385,7.79330321,145.63,145.57,16.313]
[1723985691593,45.0,145.62,145.57,16.313]
[1723985691785,12.10419926,145.64,145.57,16.313]
[1723985691982,7.79313177,145.63,145.57,16.313]
[1723985692186,12.10419926,145.64,145.57,16.313]
[1723985692382,7.79311987,145.63,145.57,16.313]
[1723985692694,12.10419926,145.64,145.57,16.313]
[1723985692996,7.79312282,145.63,145.57,16.313]
[1723985693168,12.10419926,145.64,145.57,16.313]
[1723985693369,7.79311987,145.63,145.57,16.313]
[1723985693591,7.79311987,145.62,145.57,16.313]
[1723985693772,12.10344902,145.64,145.57,16.313]
[1723985693980,52.79312576,145.63,145.57,16.313]
[1723985694280,7.79312576,145.62,145.57,16.313]
[1723985694487,45.0,145.63,145.57,16.313]
[1723985694879,57.10191484,145.64,145.57,16.313]
[1723985695084,45.0,145.64,145.57,16.313]
[1723985695411,7.79254649,145.63,145.57,16.313]
[1723985695577,12.10254581,145.64,145.57,16.313]
[1723985695778,52.7925634,145.63,145.57,16.313]
[1723985695993,45.0,145.63,145.57,16.313]
[1723985696295,57.10256297,145.64,145.57,16.313]
[1723985696495,7.79256045,145.63,145.57,16.313]
[1723985696678,32.74256297,145.68,145.58,6.22669]
[1723985696885,19.89443503,145.67,145.59,16.5003]
[1723985697088,7.79187206,145.66,145.59,16.5003]
[1723985697282,12.10028563,145.67,145.59,16.5003]
[1723985697486,7.79110746,145.66,145.59,16.5003]
[1723985697695,12.10023427,145.67,145.59,16.5003]
[1723985697874,7.79107422,145.66,145.59,16.5003]
[1723985698075,32.74023427,145.68,145.59,16.5003]
[1723985698291,64.89135705,145.67,145.59,16.5003]
[1723985698498,7.79112278,145.66,145.59,16.5003]
[1723985698676,45.0,145.65,145.59,16.5003]
[1723985699082,45.0,145.66,145.59,16.5003]
[1723985699302,57.10023427,145.67,145.59,16.5003]
[1723985699486,45.0,145.67,145.59,16.5003]
[1723985699800,12.10023427,145.69,145.61,22.6015]
[1723985700000,7.79047927,145.68,145.61,22.6015]
[1723985700203,12.10023427,145.69,145.61,22.6015]
[1723985700498,7.79046877,145.68,145.62,0.25098]
[1723985700705,12.10023427,145.71,145.62,20.25098]
[1723985700890,19.88956026,145.7,145.62,20.25098]
[1723985701093,19.88956026,145.69,145.62,20.25098]
[1723985701285,34.45536413,145.71,145.62,20.12549]
[1723985701605,21.60570444,145.7,145.62,20.12549]
[1723985701790,7.79034242,145.69,145.62,20.12549]
[1723985701991,1.71619532,145.7,145.62,20.12549]
[1723985702203,46.71619532,145.7,145.62,20.12549]
[1723985703604,65.64,145.71,145.62,0.12549]
[1723985703810,7.78998291,145.7,145.62,0.12549]
[1723985704131,1.19514776,145.78,145.64,6.1012]
[1723985704311,19.88748532,145.76,145.65,36.62579]
[1723985704474,7.16008914,145.77,145.65,36.62579]
[1723985704795,19.88488964,145.76,145.65,36.62579]
[1723985704990,7.78857432,145.75,145.65,36.62579]
[1723985705194,28.42857432,145.75,145.65,36.62579]
[1723985705406,7.78857432,145.74,145.65,36.62579]
[1723985705585,20.64,145.75,145.65,36.62579]
[1723985706578,0.12549,145.75,145.65,36.62579]
[1723985706884,65.89098,145.75,145.65,36.62579]
[1723985707078,65.89098,145.75,145.66,16.5003]
[1723985707293,65.64,145.75,145.66,22.6015]
[1723985708290,45.0,145.75,145.66,22.6015]
[1723985708886,1.71575822,145.74,145.66,22.6015]
[1723985709083,45.0,145.75,145.66,22.6015]
[1723985711507,0.25098,145.74,145.66,22.6015]
[1723985711710,0.12549,145.73,145.66,22.6015]
[1723985712011,0.25098,145.74,145.66,22.6015]
[1723985712191,0.12549,145.74,145.66,22.6015]
[1723985714806,20.64,145.78,145.66,22.6015]
[1723985715005,20.64,145.78,145.68,15.8357]
[1723985716219,20.64,145.8,145.69,6.2826]
[1723985716515,27.79772212,145.8,145.69,6.2826]
[1723985716810,34.65652212,145.8,145.69,6.2826]
[1723985717015,1.71559459,145.79,145.69,6.2826]
[1723985717319,0.25098,145.78,145.69,6.2826]
[1723985717504,0.37647,145.77,145.69,6.2826]
[1723985717703,45.37647,145.77,145.69,6.2826]
[1723985718100,1.71559283,145.76,145.69,6.2826]
[1723985718299,22.35559283,145.76,145.69,6.2826]
[1723985718507,45.0,145.75,145.69,6.2826]
[1723985718819,0.25098,145.74,145.69,6.2826]
[1723985719002,0.37647,145.74,145.69,6.2826]
[1723985719201,65.64,145.75,145.69,6.2826]
[1723985719202,65.76549,145.75,145.69,6.2826]
[1723985719514,0.12549,145.74,145.69,6.2826]
[1723985720704,65.64,145.75,145.69,6.2826]
[1723985721198,0.12549,145.74,145.69,6.2826]
[1723985721395,1.71585053,145.73,145.69,6.2826]
[1723985721720,0.37647,145.74,145.68,15.8357]
[1723985721920,0.25098,145.73,145.68,15.8357]
[1723985722138,0.12549,145.7,145.66,6.2826]
[1723985722419,67.60736353,145.7,145.66,6.2826]
[1723985722624,67.48187353,145.7,145.66,6.2826]
[1723985723299,46.84187353,145.7,145.66,6.2826]
[1723985723623,1.84187353,145.7,145.66,6.2826]
[1723985725107,0.12549,145.7,145.66,6.2826]
[1723985725301,0.37647,145.7,145.66,6.2826]
[1723985729108,45.0,145.71,145.66,6.2826]
[1723985729304,45.12549,145.72,145.66,6.2826]
[1723985730106,0.12549,145.71,145.66,6.2826]
[1723985730304,2.09282915,145.71,145.66,6.2826]
[1723985730513,0.12549,145.7,145.66,6.2826]
[1723985730712,1.8418658,145.7,145.66,6.2826]
[1723985731822,0.25098,145.69,145.66,6.2826]
[1723985732323,45.12549,145.7,145.66,6.2826]
[1723985732507,7.15436361,145.72,145.66,6.2826]
[1723985732711,45.25098,145.71,145.66,6.2826]
[1723985733394,45.0,145.71,145.66,6.2826]
[1723985734618,65.64,145.72,145.66,6.2826]
[1723985736923,20.64,145.7,145.66,6.2826]
[1723985737117,65.64,145.69,145.66,6.2826]
[1723985737315,46.71644088,145.68,145.66,6.2826]
[1723985737813,45.0,145.68,145.66,6.2826]
[1723985738118,65.64,145.68,145.66,6.2826]
[1723985743529,65.64,145.68,145.65,15.8357]
[1723985743704,1.96748736,145.67,145.65,15.8357]
[1723985744114,0.25098,145.67,145.65,15.8357]
[1723985744633,1.96756374,145.67,145.62,22.2188]
[1723985746241,0.25098,145.67,145.62,22.2188]
[1723985747631,1.96771055,145.67,145.62,22.2188]
[1723985747838,0.25098,145.67,145.62,22.2188]
[1723985751305,1.96770834,145.67,145.62,22.2188]
[1723985751507,0.25098,145.66,145.62,22.2188]
[1723985751850,0.25098,145.65,145.62,22.2188]
[1723985752009,65.89098,145.65,145.62,22.2188]
[1723985752913,1.71687043,145.64,145.62,22.2188]
[1723985753413,65.89098,145.65,145.62,22.2188]
[1723985754221,1.7168822,145.64,145.62,22.2188]
[1723985754446,1.7168822,145.64,145.62,16.2007]
[1723985755117,1.7168822,145.64,145.58,21.8109]
[1723985755540,0.12549,145.64,145.58,21.8109]
[1723985755927,1.9680977,145.64,145.58,21.8109]
[1723985756224,0.12549,145.63,145.58,21.8109]
[1723985756625,0.25098,145.63,145.58,21.8109]
[1723985756941,1.19620777,145.62,145.58,21.8109]
[1723985761734,65.64,145.65,145.58,21.8109]
[1723985761950,20.64,145.67,145.58,21.8109]
[1723985762134,1.1952563,145.65,145.58,21.8109]
[1723985763341,1.1952563,145.65,145.59,15.3273]
[1723985763721,20.64,145.67,145.59,15.3273]
[1723985763927,20.64,145.69,145.59,15.3273]
[1723985764121,28.43226555,145.68,145.59,15.3273]
[1723985764436,9.50885482,145.67,145.59,15.3273]
[1723985764630,1.71658927,145.67,145.59,15.3273]
[1723985765446,1.71664903,145.68,145.59,15.3273]
[1723985765625,28.55751737,145.67,145.59,15.3273]
[1723985765830,75.39997247,145.66,145.59,15.3273]
[1723985766151,22.60784386,145.66,145.59,15.3273]
[1723985766345,45.0,145.65,145.59,15.3273]
[1723985767062,28.43300653,145.64,145.59,15.3273]
[1723985767350,45.0,145.63,145.59,15.3273]
[1723985768941,12.10246216,145.68,145.59,15.3273]
[1723985769152,85.66084199,145.67,145.59,15.3273]
[1723985769455,7.79288983,145.66,145.6,1.37278203]
[1723985769657,7.79288983,145.65,145.6,1.37278203]
[1723985769950,12.10246216,145.68,145.59,15.3273]
[1723985770257,28.43254135,145.67,145.59,15.3273]
[1723985770452,7.79254135,145.66,145.59,15.3273]
[1723985770649,52.79254135,145.65,145.59,15.3273]
[1723985770852,45.0,145.65,145.59,15.3273]
[1723985771046,45.0,145.66,145.59,15.3273]
[1723985771250,7.7925417,145.65,145.59,15.3273]
[1723985771434,45.0,145.64,145.59,15.3273]
[1723985772654,65.64,145.64,145.59,15.3273]
[1723985772836,7.79338437,145.63,145.59,15.3273]
[1723985773033,45.0,145.62,145.59,15.3273]
[1723985773461,20.64,145.62,145.59,15.3273]
[1723985773755,45.0,145.61,145.59,15.3273]
[1723985776264,1.71721921,145.6,145.59,15.3273]
[1723985776449,45.0,145.61,145.59,15.3273]
[1723985776656,65.76549,145.62,145.59,15.3273]
[1723985778464,0.12549,145.61,145.59,15.3273]
[1723985779967,45.0,145.62,145.59,15.3273]
[1723985780335,22.35713529,145.64,145.59,15.3273]
[1723985780537,7.79407449,145.63,145.59,15.3273]
[1723985780759,7.79407449,145.62,145.59,15.3273]
[1723985780963,20.64,145.62,145.59,15.3273]
[1723985781154,20.76549,145.63,145.59,15.3273]
[1723985781454,7.79411904,145.62,145.59,15.3273]
[1723985781762,45.0,145.61,145.59,15.3273]
[1723985781943,45.0,145.62,145.59,15.3273]
[1723985782143,7.79412846,145.61,145.59,15.3273]
[1723985782461,45.0,145.6,145.59,15.3273]
[1723985783237,45.25098,145.6,145.56,15.5412]
[1723985783440,7.79542357,145.59,145.56,15.5412]
[1723985783655,45.0,145.58,145.56,15.5412]
[1723985784663,65.64,145.58,145.56,15.5412]
[1723985784868,0.12549,145.57,145.55,0.3552172]
[1723985785060,7.79643229,145.57,145.55,0.3552172]
[1723985785267,45.0,145.56,145.55,0.3552172]
[1723985786339,45.12549,145.56,145.55,0.3552172]
[1723985786860,73.68848133,145.56,145.55,0.3552172]
[1723985787071,73.93946133,145.56,145.55,0.3552172]
[1723985787446,73.68848133,145.56,145.55,0.3552172]
[1723985787950,73.93946133,145.56,145.55,0.3552172]
[1723985788849,65.89098,145.56,145.55,0.3552172]
[1723985789074,73.56348758,145.56,145.55,0.3552172]
[1723985789363,52.797681,145.56,145.55,0.3552172]
[1723985789573,45.0,145.56,145.55,0.3552172]
[1723985789773,20.64,145.58,145.55,0.3552172]
[1723985789946,1.7176768,145.57,145.55,0.3552172]
[1723985790146,2.91268343,145.6,145.55,0.3552172]
[1723985790482,30.15475555,145.59,145.55,0.3552172]
[1723985790787,7.7970697,145.58,145.55,0.3552172]
[1723985791084,1.19482764,145.6,145.55,0.3552172]
[1723985791288,30.15479201,145.59,145.55,0.3552172]
[1723985791458,9.5147945,145.58,145.55,0.3552172]
[1723985791655,22.35767967,145.59,145.55,0.3552172]
[1723985791870,65.64,145.57,145.55,0.3552172]
[1723985792080,67.35789939,145.57,145.55,0.3552172]
[1723985792282,65.64,145.57,145.55,0.3552172]
[1723985792785,1.7179,145.56,145.55,0.3552172]
[1723985793182,67.3579026,145.57,145.55,0.3552172]
[1723985793680,45.0,145.57,145.55,0.3552172]
[1723985798766,45.0,145.58,145.55,0.3552172]
[1723985798967,0.12549,145.6,145.55,0.3552172]
[1723985798968,7.13043573,145.61,145.55,0.3552172]
[1723985799272,7.14222063,145.63,145.55,0.3552172]
[1723985799475,20.64,145.61,145.55,0.3552172]
[1723985799799,20.64,145.62,145.55,0.3552172]
[1723985799971,20.64,145.6,145.55,0.3552172]
[1723985800167,1.8430868,145.59,145.55,0.3552172]
[1723985800384,0.12549,145.59,145.55,0.3552172]
[1723985800562,66.01647,145.59,145.55,0.3552172]
[1723985800768,67.73418093,145.59,145.55,0.3552172]
[1723985800989,1.84320725,145.58,145.55,0.3552172]
[1723985801193,0.12549,145.57,145.55,0.3552172]
[1723985802878,0.25098,145.58,145.55,0.3552172]
[1723985803082,1.96880553,145.58,145.55,0.3552172]
[1723985805465,0.25098,145.58,145.55,0.3552172]
[1723985806379,1.96880316,145.58,145.55,0.3552172]
[1723985806581,0.25098,145.58,145.55,0.3552172]
[1723985807000,1.9688048,145.58,145.55,0.3552172]
[1723985808891,0.12549,145.57,145.55,0.3552172]
[1723985809101,0.12549,145.56,145.55,0.3552172]
[1723985809600,1.717868,145.56,145.55,0.3552172]
[1723985810897,45.12549,145.57,145.55,0.3552172]
[1723985811097,45.0,145.57,145.55,0.3552172]
[1723985817282,20.64,145.61,145.55,0.3552172]
[1723985817590,7.79646568,145.6,145.55,0.3552172]
[1723985817788,7.14110287,145.61,145.55,0.3552172]
[1723985818013,7.79612262,145.6,145.55,0.3552172]
[1723985818519,28.43609149,145.59,145.55,0.3552172]
[1723985818678,45.0,145.58,145.55,0.3552172]
[1723985819993,21.01647,145.6,145.55,0.3552172]
[1723985819994,9.51437715,145.57,145.55,0.3552172]
[1723985820191,45.0,145.56,145.55,0.3552172]
[1723985821602,52.79702295,145.56,145.55,0.3552172]
[1723985823703,20.64,145.6,145.55,0.3552172]
[1723985824393,20.64,145.62,145.55,0.3552172]
[1723985824597,28.43467258,145.61,145.55,0.3552172]
[1723985824814,7.79467258,145.6,145.55,0.3552172]